fUSD/lending_fUSD_20250708
["ID","MTS","AMOUNT","RATE_DAILY","PERIOD"]
[370350043,1751975440836,-303.85,0.00023504,2]
[370350044,1751975440846,-5869.1228925,0.00023538,2]
[370350045,1751975440856,-2080.6093674,0.00023555,9]
[370350046,1751975440865,-167.24,0.0002358,2]
[370350047,1751975440874,-300.35,0.00023603,2]
[370350048,1751975440884,-304.92,0.00023603,2]
[370350049,1751975440893,-301.16,0.00023603,2]
[370350050,1751975440903,-2080.6093674,0.00023831,10]
[370350051,1751975440913,-154.8,0.00023836,2]
[370350052,1751975440922,-189.1,0.00023855,2]
[370350053,1751975440932,-150.0,0.0002388,2]
[370350054,1751975440941,-783.0,0.00023911,2]
[370350055,1751975440951,-502.0,0.00024012,2]
[370350056,1751975440960,-1000.0,0.00024013,2]
[370350057,1751975440969,-235.19,0.00024017,2]
[370350058,1751975440979,-235.19,0.0002403,2]
[370350059,1751975440989,-359.6155233,0.00024042,2]
[370350060,1751975440998,-235.19,0.00024043,2]
[370350061,1751975441008,-235.19,0.00024055,2]
[370350062,1751975441018,-235.19,0.00024068,2]
[370350063,1751975441028,-235.19,0.0002408,2]
[370350064,1751975441038,-1181.47590755,0.00024089,2]
[370350065,1751975441048,-235.19,0.00024093,2]
[370350066,1751975441057,-2000.0,0.000241,2]
[370350067,1751975441067,-235.19,0.00024106,2]
[370350068,1751975441076,-2080.6093674,0.00024107,10]
[370350070,1751975441086,-235.19,0.00024118,2]
[370350072,1751975441096,-235.19,0.00024131,2]
[370350074,1751975441105,-235.19,0.00024144,2]
[370350076,1751975441115,-235.19,0.00024156,2]
[370350077,1751975441125,-235.19,0.00024169,2]
[370350078,1751975441134,-235.19,0.00024181,2]
[370350079,1751975441143,-235.19,0.00024194,2]
[370350080,1751975441153,-235.19,0.00024207,2]
[370350081,1751975441162,-235.19,0.00024219,2]
[370350082,1751975441172,-235.19,0.00024232,2]
[370350083,1751975441181,-235.19,0.00024245,2]
[370350084,1751975441191,-235.19,0.00024257,2]
[370350085,1751975441201,-150.0,0.0002435,2]
[370350086,1751975441210,-2080.6093674,0.00024383,11]
[370350087,1751975441219,-1417.7728106,0.00024537,2]
[370350088,1751975441229,-1417.77281059,0.00024563,2]
[370350089,1751975441239,-198.0,0.00024563,2]
[370350090,1751975441248,-1784.46,0.0002457,2]
[370350091,1751975441257,-1417.77281059,0.00024589,2]
[370350092,1751975441266,-1417.77281059,0.00024615,2]
[370350093,1751975441276,-374.4,0.0002462,3]
[370350094,1751975441285,-59311.89155608,0.0002463,2]
[370350095,1751975441294,-1417.77281059,0.00024641,2]
[370350096,1751975441304,-3055.0,0.00024658,4]
[370350097,1751975441313,-7128.0,0.00024658,4]
[370350098,1751975441322,-2080.6093674,0.00024659,11]
[370350099,1751975441333,-587.57325333,0.00024659,2]
[370350100,1751975441342,-1417.77281059,0.00024666,2]
[370350101,1751975441351,-587.57325333,0.00024671,2]
[370350102,1751975441361,-587.57325333,0.00024682,2]
[370350103,1751975441370,-1417.77281059,0.00024692,2]
[370350104,1751975441379,-587.57325333,0.00024693,2]
[370350105,1751975441389,-587.57325333,0.00024704,2]
[370350106,1751975441399,-587.57325333,0.00024715,2]
[370350107,1751975441408,-1417.77281059,0.00024718,2]
[370350108,1751975441418,-587.57325333,0.00024726,2]
[370350109,1751975441427,-587.57325333,0.00024737,2]
[370350110,1751975441436,-1417.77281059,0.00024744,2]
[370350111,1751975441446,-587.57325333,0.00024748,2]
[370350112,1751975441455,-587.57325333,0.00024759,2]
[370350113,1751975441465,-437.17012544,0.0002476,2]
[370350114,1751975441473,-437.17012541,0.00024761,2]
[370350115,1751975441483,-460.0,0.00024762,2]
[370350116,1751975441492,-460.0,0.00024762,2]
[370350117,1751975441501,-727.51,0.00024762,2]
[370350118,1751975441510,-437.17012541,0.00024762,2]
[370350119,1751975441519,-649.71,0.00024763,2]
[370350120,1751975441531,-1000.0,0.00024763,2]
[370350121,1751975441541,-460.0,0.00024763,2]
[370350122,1751975441550,-460.0,0.00024763,2]
[370350123,1751975441559,-460.0,0.00024763,2]
[370350124,1751975441569,-4583.17,0.00024763,2]
[370350125,1751975441578,-460.0,0.00024763,2]
[370350126,1751975441588,-460.0,0.00024763,2]
[370350127,1751975441598,-460.0,0.00024763,2]
[370350128,1751975441607,-661.32,0.00024763,2]
[370350129,1751975441616,-460.0,0.00024763,2]
[370350130,1751975441625,-460.0,0.00024763,2]
[370350131,1751975441635,-460.0,0.00024763,2]
[370350132,1751975441644,-460.0,0.00024763,2]
[370350133,1751975441654,-460.0,0.00024763,2]
[370350134,1751975441663,-669.93,0.00024763,2]
[370350135,1751975441672,-495.59,0.00024763,2]
[370350136,1751975441682,-460.0,0.00024763,2]
[370350137,1751975441691,-479.34,0.00024763,2]
[370350138,1751975441701,-799.46,0.00024763,2]
[370350139,1751975441710,-460.0,0.00024763,2]
[370350140,1751975441720,-610.21,0.00024763,2]
[370350141,1751975441731,-460.0,0.00024763,2]
[370350142,1751975441740,-460.0,0.00024763,2]
[370350143,1751975441749,-460.0,0.00024763,2]
[370350144,1751975441759,-746.55,0.00024763,2]
[370350145,1751975441768,-460.0,0.00024763,2]
[370350146,1751975441778,-928.87,0.00024763,2]
[370350147,1751975441788,-460.0,0.00024763,2]
[370350148,1751975441797,-5242.09,0.00024763,2]
[370350149,1751975441807,-460.0,0.00024763,2]
[370350150,1751975441816,-460.0,0.00024763,2]
[370350151,1751975441825,-592.06,0.00024763,2]
[370350152,1751975441835,-882.29,0.00024763,2]
[370350153,1751975441844,-460.0,0.00024763,2]
[370350154,1751975441854,-460.0,0.00024763,2]
[370350155,1751975441863,-460.0,0.00024763,2]
[370350156,1751975441872,-460.0,0.00024763,2]
[370350157,1751975441882,-1211.04,0.00024763,2]
[370350158,1751975441891,-709.87,0.00024763,2]
[370350159,1751975441901,-460.0,0.00024763,2]
[370350160,1751975441910,-841.57,0.00024763,2]
[370350161,1751975441920,-460.0,0.00024763,2]
[370350162,1751975441931,-1680.91,0.00024763,2]
[370350163,1751975441941,-460.0,0.00024763,2]
[370350164,1751975441951,-460.0,0.00024763,2]
[370350165,1751975441960,-617.12,0.00024763,2]
[370350166,1751975441970,-1168.95,0.00024763,2]
[370350167,1751975441980,-460.0,0.00024763,2]
[370350168,1751975441989,-460.0,0.00024763,2]
[370350169,1751975441999,-460.0,0.00024763,2]
[370350170,1751975442008,-460.0,0.00024763,2]
[370350171,1751975442019,-460.0,0.00024763,2]
[370350172,1751975442029,-838.85,0.00024763,2]
[370350173,1751975442038,-460.0,0.00024763,2]
[370350174,1751975442048,-460.0,0.00024763,2]
[370350175,1751975442058,-460.0,0.00024763,2]
[370350176,1751975442069,-903.05,0.00024763,2]
[370350177,1751975442079,-1727.17,0.00024763,2]
[370350178,1751975442088,-460.0,0.00024763,2]
[370350179,1751975442098,-460.0,0.00024763,2]
[370350180,1751975442108,-3650.0,0.00024763,2]
[370350181,1751975442119,-460.0,0.00024763,2]
[370350182,1751975442129,-999.32,0.00024763,2]
[370350183,1751975442398,-460.0,0.00024763,2]
[370350184,1751975442407,-460.0,0.00024763,2]
[370350185,1751975442417,-557.65,0.00024763,2]
[370350186,1751975442428,-460.0,0.00024763,2]
[370350187,1751975442439,-584.56,0.00024763,2]
[370350188,1751975442448,-460.0,0.00024763,2]
[370350189,1751975442457,-2050.26,0.00024763,2]
[370350190,1751975442467,-460.0,0.00024763,2]
[370350191,1751975442476,-463.34234691,0.00024763,2]
[370350192,1751975442488,-460.0,0.00024763,2]
[370350193,1751975442497,-460.0,0.00024763,2]
[370350194,1751975442507,-549.25,0.00024763,2]
[370350195,1751975442516,-919.12,0.00024763,2]
[370350196,1751975442528,-460.0,0.00024763,2]
[370350197,1751975442537,-734.63,0.00024763,2]
[370350198,1751975442547,-437.17012541,0.00024763,2]
[370350199,1751975442557,-481.6,0.00024764,2]
[370350200,1751975442568,-544.27,0.00024764,2]
[370350201,1751975442578,-460.0,0.00024764,2]
[370350202,1751975442589,-460.0,0.00024764,2]
[370350203,1751975442599,-460.0,0.00024764,2]
[370350204,1751975442608,-460.0,0.00024764,2]
[370350205,1751975442618,-578.15,0.00024764,2]
[370350206,1751975442630,-1069.05,0.00024764,2]
[370350207,1751975442640,-460.0,0.00024764,2]
[370350208,1751975442650,-591.81,0.00024764,2]
[370350209,1751975442659,-460.0,0.00024764,2]
[370350210,1751975442669,-460.0,0.00024764,2]
[370350211,1751975442678,-460.0,0.00024764,2]
[370350212,1751975442688,-460.0,0.00024764,2]
[370350213,1751975442698,-460.0,0.00024764,2]
[370350214,1751975442707,-779.83,0.00024764,2]
[370350215,1751975442719,-994.23,0.00024764,2]
[370350216,1751975442728,-460.0,0.00024764,2]
[370350217,1751975442739,-460.0,0.00024764,2]
[370350218,1751975442749,-460.0,0.00024764,2]
[370350219,1751975442759,-701.1,0.00024764,2]
[370350220,1751975442768,-460.0,0.00024764,2]
[370350221,1751975442778,-460.0,0.00024764,2]
[370350222,1751975442787,-487.97,0.00024764,2]
[370350223,1751975442797,-460.0,0.00024764,2]
[370350224,1751975442807,-460.0,0.00024764,2]
[370350225,1751975442816,-787.57,0.00024764,2]
[370350226,1751975442826,-460.0,0.00024764,2]
[370350227,1751975442836,-531.37,0.00024764,2]
[370350228,1751975442846,-531.34,0.00024764,2]
[370350229,1751975442855,-581.91,0.00024764,2]
[370350230,1751975442864,-437.17012541,0.00024764,2]
[370350231,1751975442874,-437.17012541,0.00024766,2]
[370350232,1751975442884,-437.17012541,0.00024767,2]
[370350233,1751975442894,-437.17012541,0.00024768,2]
[370350234,1751975442903,-437.17012541,0.00024769,2]
[370350235,1751975442913,-3128.239588,0.0002477,2]
[370350236,1751975442923,-176.2590727,0.0002477,2]
[370350237,1751975442932,-437.17012541,0.0002477,2]
[370350238,1751975442941,-172.38570107,0.0002477,2]
[370350239,1751975442951,-587.57325333,0.0002477,2]
[370350240,1751975442960,-1417.77281059,0.0002477,2]
[370350241,1751975442970,-17626.08956786,0.000248,2]
[370350242,1751975442979,-150.0,0.0002482,2]
[370350243,1751975442990,-460.0,0.00024849,2]
[370350244,1751975442999,-460.0,0.00024849,2]
[370350245,1751975443009,-509.03269819,0.00024849,2]
[370350246,1751975443018,-460.0,0.00024849,2]
[370350247,1751975443028,-1240.22,0.00024849,2]
[370350248,1751975443037,-460.0,0.00024849,2]
[370350249,1751975443047,-3431.76,0.00024849,2]
[370350250,1751975443056,-801.85,0.00024849,2]
[370350251,1751975443065,-460.0,0.00024849,2]
[370350252,1751975443075,-460.0,0.00024849,2]
[370350253,1751975443084,-696.7,0.00024849,2]
[370350254,1751975443093,-460.0,0.00024849,2]
[370350255,1751975443102,-485.49,0.00024849,2]
[370350256,1751975443112,-460.0,0.00024849,2]
[370350258,1751975443121,-419.30214961,0.00024849,2]
[370350260,1751975443133,-460.0,0.00024849,2]
[370350261,1751975443142,-460.0,0.00024849,2]
[370350262,1751975443151,-460.0,0.00024849,2]
[370350263,1751975443161,-460.0,0.00024849,2]
[370350264,1751975443170,-822.8,0.00024849,2]
[370350265,1751975443180,-460.0,0.00024849,2]
[370350267,1751975443189,-460.0,0.00024849,2]
[370350268,1751975443198,-460.0,0.00024849,2]
[370350269,1751975443207,-460.0,0.00024849,2]
[370350270,1751975443217,-460.0,0.00024849,2]
[370350271,1751975443226,-460.0,0.00024849,2]
[370350273,1751975443236,-1238.0,0.00024849,2]
[370350274,1751975443245,-460.0,0.00024849,2]
[370350275,1751975443255,-460.0,0.00024849,2]
[370350276,1751975443264,-460.0,0.00024849,2]
[370350277,1751975443273,-460.0,0.00024849,2]
[370350278,1751975443282,-920.77,0.00024849,2]
[370350279,1751975443291,-587.97,0.00024849,2]
[370350280,1751975443300,-460.0,0.00024849,2]
[370350282,1751975443310,-460.0,0.00024849,2]
[370350283,1751975443319,-2158.26,0.00024849,2]
[370350284,1751975443328,-749.88,0.00024849,2]
[370350288,1751975443337,-460.0,0.00024849,2]
[370350289,1751975443347,-460.0,0.00024849,2]
[370350290,1751975443355,-460.0,0.00024849,2]
[370350291,1751975443365,-460.0,0.00024849,2]
[370350292,1751975443375,-460.0,0.00024849,2]
[370350294,1751975443384,-460.0,0.00024849,2]
[370350296,1751975443394,-460.0,0.00024849,2]
[370350297,1751975443406,-460.0,0.00024849,2]
[370350298,1751975443416,-460.0,0.00024849,2]
[370350299,1751975443425,-785.67,0.00024849,2]
[370350300,1751975443435,-460.0,0.00024849,2]
[370350301,1751975443444,-630.05,0.00024849,2]
[370350302,1751975443455,-460.0,0.00024849,2]
[370350303,1751975443465,-460.0,0.00024849,2]
[370350304,1751975443475,-460.0,0.00024849,2]
[370350305,1751975443486,-460.0,0.00024849,2]
[370350306,1751975443495,-460.0,0.00024849,2]
[370350307,1751975443505,-460.0,0.00024849,2]
[370350308,1751975443516,-460.0,0.00024849,2]
[370350309,1751975443528,-835.29,0.00024849,2]
[370350310,1751975443538,-460.0,0.00024849,2]
[370350311,1751975443548,-671.26,0.00024849,2]
[370350312,1751975443557,-460.0,0.00024849,2]
[370350313,1751975443568,-505.3,0.00024849,2]
[370350314,1751975443577,-460.0,0.00024849,2]
[370350315,1751975443587,-708.4,0.00024849,2]
[370350316,1751975443597,-460.0,0.00024849,2]
[370350317,1751975443608,-460.0,0.00024849,2]
[370350318,1751975443618,-460.0,0.00024849,2]
[370350319,1751975443627,-565.64,0.00024849,2]
[370350320,1751975443636,-723.87,0.00024849,2]
[370350321,1751975443646,-460.0,0.00024849,2]
[370350322,1751975443655,-460.0,0.00024849,2]
[370350323,1751975443665,-733.73,0.00024849,2]
[370350324,1751975443674,-460.0,0.00024849,2]
[370350325,1751975443683,-460.0,0.00024849,2]
[370350326,1751975443693,-473.09,0.00024849,2]
[370350328,1751975443702,-460.0,0.00024849,2]
[370350329,1751975443712,-460.0,0.00024849,2]
[370350330,1751975443721,-460.0,0.00024849,2]
[370350331,1751975443732,-460.0,0.00024849,2]
[370350332,1751975443741,-842.51,0.00024849,2]
[370350333,1751975443751,-460.0,0.00024849,2]
[370350334,1751975443760,-460.0,0.00024849,2]
[370350335,1751975443769,-460.0,0.00024849,2]
[370350337,1751975443779,-460.0,0.00024849,2]
[370350339,1751975443788,-812.22,0.00024849,2]
[370350341,1751975443798,-904.81,0.00024849,2]
[370350343,1751975443807,-460.0,0.00024849,2]
[370350345,1751975443816,-460.0,0.00024849,2]
[370350348,1751975443826,-460.0,0.00024849,2]
[370350350,1751975443835,-460.0,0.00024849,2]
[370350352,1751975443844,-460.0,0.00024849,2]
[370350355,1751975443854,-1472.04,0.00024849,2]
[370350358,1751975443863,-460.0,0.00024849,2]
[370350360,1751975443872,-460.0,0.00024849,2]
[370350363,1751975443882,-460.0,0.00024849,2]
[370350366,1751975443892,-460.0,0.00024849,2]
[370350369,1751975443902,-460.0,0.00024849,2]
[370350371,1751975443912,-460.0,0.00024849,2]
[370350373,1751975443921,-460.0,0.00024849,2]
[370350374,1751975443931,-460.0,0.00024849,2]
[370350375,1751975443940,-761.23,0.00024849,2]
[370350376,1751975443949,-460.0,0.00024849,2]
[370350377,1751975443959,-460.0,0.00024849,2]
[370350378,1751975443969,-460.0,0.00024849,2]
[370350379,1751975443978,-460.0,0.00024849,2]
[370350380,1751975443989,-1172.56,0.00024849,2]
[370350381,1751975443999,-525.99478469,0.00024849,2]
[370350382,1751975444009,-460.0,0.00024849,2]
[370350383,1751975444018,-672.12,0.00024849,2]
[370350384,1751975444027,-633.99,0.00024849,2]
[370350385,1751975444036,-460.0,0.00024849,2]
[370350386,1751975444045,-1225.57,0.00024849,2]
[370350387,1751975444054,-279.54832111,0.00024849,2]
[370350388,1751975444063,-2883.15,0.00024849,2]
[370350389,1751975444072,-751.95,0.00024849,2]
[370350390,1751975444081,-460.0,0.00024849,2]
[370350391,1751975444092,-724.17,0.00024849,2]
[370350392,1751975444103,-460.0,0.00024849,2]
[370350393,1751975444113,-1071.99,0.00024849,2]
[370350394,1751975444122,-460.0,0.00024849,2]
[370350395,1751975444132,-460.0,0.00024849,2]
[370350396,1751975444142,-3327.13,0.00024849,2]
[370350397,1751975444151,-561.77,0.00024849,2]
[370350398,1751975444160,-591.79,0.00024849,2]
[370350399,1751975444169,-460.0,0.00024849,2]
[370350400,1751975444179,-460.0,0.00024849,2]
[370350401,1751975444188,-1384.02,0.00024849,2]
[370350402,1751975444198,-1334.68,0.00024849,2]
[370350403,1751975444207,-500.0,0.00024849,2]
[370350404,1751975444217,-1647.27410619,0.0002485,2]
[370350405,1751975444227,-599.06,0.00024859,2]
[370350406,1751975444238,-2108.94,0.00024859,2]
[370350407,1751975444247,-460.0,0.00024859,2]
[370350408,1751975444257,-502.69,0.00024859,2]
[370350409,1751975444267,-751.88,0.00024859,2]
[370350410,1751975444277,-1347.13,0.00024859,2]
[370350411,1751975444287,-1375.0,0.00024859,2]
[370350412,1751975444297,-571.44051519,0.00024859,2]
[370350413,1751975444307,-1152.16,0.00024859,2]
[370350414,1751975444317,-460.0,0.00024859,2]
[370350415,1751975444327,-460.0,0.00024859,2]
[370350416,1751975444336,-907.13,0.00024859,2]
[370350417,1751975444347,-460.0,0.00024859,2]
[370350418,1751975444357,-162.21335856,0.00024859,2]
[370350419,1751975444366,-487.24668259,0.00024859,2]
[370350420,1751975444376,-460.0,0.00024859,2]
[370350421,1751975444388,-1629.67,0.00024859,2]
[370350422,1751975444398,-2868.9,0.00024859,2]
[370350423,1751975444409,-913.72,0.00024859,2]
[370350424,1751975444420,-598.25,0.00024859,2]
[370350425,1751975444430,-350.60217386,0.00024859,2]
[370350426,1751975444439,-537.45,0.00024859,2]
[370350427,1751975444449,-3008.83,0.00024859,2]
[370350428,1751975444459,-460.0,0.00024859,2]
[370350429,1751975444468,-460.0,0.00024859,2]
[370350430,1751975444477,-460.0,0.00024859,2]
[370350431,1751975444487,-597.2,0.00024859,2]
[370350432,1751975444497,-460.0,0.00024859,2]
[370350433,1751975444506,-1149.45,0.00024859,2]
[370350434,1751975444516,-460.0,0.00024859,2]
[370350435,1751975444529,-2707.97,0.00024859,2]
[370350436,1751975444539,-1608.77,0.00024859,2]
[370350437,1751975444549,-460.0,0.00024859,2]
[370350438,1751975444559,-2119.13,0.00024859,2]
[370350439,1751975444570,-460.0,0.00024859,2]
[370350440,1751975444580,-460.0,0.00024859,2]
[370350441,1751975444591,-1677.26,0.00024859,2]
[370350442,1751975444602,-2983.08,0.00024859,2]
[370350443,1751975444612,-11814.17,0.00024859,2]
[370350444,1751975444623,-460.0,0.00024859,2]
[370350445,1751975444633,-1458.94,0.00024859,2]
[370350446,1751975444643,-460.0,0.00024859,2]
[370350447,1751975444654,-495.61549425,0.00024859,2]
[370350448,1751975444665,-499.46132762,0.00024859,2]
[370350449,1751975444676,-2103.35,0.00024859,2]
[370350450,1751975444689,-460.0,0.00024859,2]
[370350451,1751975444699,-460.0,0.00024859,2]
[370350452,1751975444709,-460.0,0.00024859,2]
[370350453,1751975444718,-460.0,0.00024859,2]
[370350454,1751975444729,-3024.7,0.00024859,2]
[370350455,1751975444739,-3273.07,0.00024859,2]
[370350456,1751975444749,-460.0,0.00024859,2]
[370350457,1751975444758,-1666.18,0.00024859,2]
[370350458,1751975444768,-5664.19,0.00024859,2]
[370350459,1751975444778,-460.0,0.00024859,2]
[370350460,1751975444787,-1318.33,0.00024859,2]
[370350461,1751975444797,-1253.61,0.00024859,2]
[370350462,1751975444806,-507.93201924,0.00024859,2]
[370350463,1751975444816,-1457.0,0.00024859,2]
[370350464,1751975444825,-461.46100248,0.00024859,2]
[370350465,1751975444834,-1139.63,0.00024859,2]
[370350466,1751975444844,-460.0,0.00024859,2]
[370350467,1751975444853,-460.0,0.00024859,2]
[370350468,1751975444863,-1975.48,0.00024859,2]
[370350469,1751975444872,-460.0,0.00024859,2]
[370350470,1751975444881,-574.3,0.00024859,2]
[370350471,1751975444891,-647.87,0.00024859,2]
[370350472,1751975444900,-1497.83,0.00024859,2]
[370350473,1751975444910,-519.34,0.00024859,2]
[370350474,1751975444919,-1102.4,0.00024859,2]
[370350475,1751975444928,-1335.2,0.00024859,2]
[370350476,1751975444938,-533.05980643,0.00024859,2]
[370350477,1751975444947,-674.56,0.00024859,2]
[370350478,1751975444956,-2139.29,0.00024859,2]
[370350479,1751975444965,-460.0,0.00024859,2]
[370350480,1751975444975,-548.92,0.00024859,2]
[370350481,1751975444984,-4187.88,0.00024859,2]
[370350482,1751975444993,-721.13,0.00024859,2]
[370350483,1751975445003,-460.0,0.00024859,2]
[370350484,1751975445012,-460.0,0.00024859,2]
[370350485,1751975445021,-460.0,0.00024859,2]
[370350486,1751975445031,-701.78,0.00024859,2]
[370350487,1751975445041,-460.0,0.00024859,2]
[370350488,1751975445050,-460.0,0.00024859,2]
[370350489,1751975445059,-593.47,0.00024859,2]
[370350490,1751975445068,-500.0,0.00024859,2]
[370350491,1751975445078,-232.24345479,0.0002486,2]
[370350492,1751975445087,-8569.8408933,0.0002486,2]
[370350493,1751975445096,-8201.3249909,0.0002486,2]
[370350494,1751975445106,-232.24345479,0.0002486,2]
[370350495,1751975445116,-232.24345479,0.0002486,2]
[370350496,1751975445125,-18349.3942947,0.00024865,2]
[370350497,1751975445134,-75399.81002,0.00024865,2]
[370350498,1751975445144,-10051.9787526,0.00024865,2]
[370350499,1751975445153,-10221.6318607,0.00024865,2]
[370350500,1751975445162,-286.83440096,0.00024869,10]
[370350501,1751975445172,-460.0,0.00024869,2]
[370350502,1751975445181,-546.93,0.00024869,2]
[370350503,1751975445190,-506.83,0.00024869,2]
[370350504,1751975445199,-460.0,0.00024869,2]
[370350505,1751975445208,-460.0,0.00024869,2]
[370350506,1751975445218,-627.1,0.00024869,2]
[370350507,1751975445227,-247.87471951,0.00024869,2]
[370350508,1751975445237,-192.86546432,0.00024869,2]
[370350509,1751975445246,-680.46,0.00024869,2]
[370350510,1751975445255,-460.0,0.00024869,2]
[370350511,1751975445264,-460.0,0.00024869,2]
[370350512,1751975445273,-460.0,0.00024869,2]
[370350513,1751975445283,-524.08,0.00024869,2]
[370350514,1751975445292,-460.0,0.00024869,2]
[370350515,1751975445302,-544.0,0.00024869,2]
[370350516,1751975445311,-460.0,0.00024869,2]
[370350517,1751975445321,-1657.78,0.00024869,2]
[370350518,1751975445330,-460.0,0.00024869,2]
[370350519,1751975445339,-460.0,0.00024869,2]
[370350520,1751975445349,-460.0,0.00024869,2]
[370350521,1751975445358,-460.0,0.00024869,2]
[370350522,1751975445367,-626.52,0.00024869,2]
[370350523,1751975445376,-460.0,0.00024869,2]
[370350524,1751975445387,-460.0,0.00024869,2]
[370350525,1751975445396,-690.39,0.00024869,2]
[370350526,1751975445406,-1121.03,0.00024869,2]
[370350527,1751975445415,-400.81031954,0.00024869,2]
[370350528,1751975445425,-460.0,0.00024869,2]
[370350529,1751975445435,-574.86,0.00024869,2]
[370350530,1751975445444,-460.0,0.00024869,2]
[370350531,1751975445453,-1228.26,0.00024869,2]
[370350532,1751975445463,-460.0,0.00024869,2]
[370350533,1751975445472,-957.54,0.00024869,2]
[370350534,1751975445482,-754.87,0.00024869,2]
[370350535,1751975445491,-1092.65,0.00024869,2]
[370350536,1751975445501,-688.19,0.00024869,2]
[370350537,1751975445510,-460.0,0.00024869,2]
[370350538,1751975445521,-152.88742755,0.00024869,2]
[370350539,1751975445530,-460.0,0.00024869,2]
[370350540,1751975445544,-460.0,0.00024869,2]
[370350541,1751975445554,-5022.63776518,0.00024869,2]
[370350542,1751975445565,-460.0,0.00024869,2]
[370350543,1751975445576,-460.0,0.00024869,2]
[370350544,1751975445587,-460.0,0.00024869,2]
[370350545,1751975445597,-255.04477869,0.0002487,2]
[370350546,1751975445606,-2025664.22210112,0.0002487,7]
[370350547,1751975445618,-2373.7534595,0.0002487,7]
[370350548,1751975445628,-1916493.80802436,0.0002487,3]
[370350580,1751975446561,-254.37904794,0.00024762,2]
[370350581,1751975446572,-1131.84049927,0.00024762,2]
[370350594,1751975447321,-346.39045279,0.00024762,2]
[370350595,1751975447331,-232.31574375,0.00024763,2]
[370350596,1751975447461,-227.68425625,0.00024763,2]
[370350597,1751975447471,-460.0,0.00024764,2]
[370350598,1751975447480,-269.8242305,0.0002477,2]
[370350599,1751975447490,-460.0,0.00024849,2]
[370350600,1751975447500,-142.10945733,0.00024859,2]
[370350602,1751975934108,152.72,0.00013699,2]
[370350603,1751975962216,250.0,0.00015,2]
[370350703,1751976081072,584.44686616,0.00030136,120]
[370350704,1751976157832,584.28,0.00030136,120]
[370350708,1751976391923,584.28,0.00030136,120]
[370350710,1751976474230,584.28,0.00030136,120]
[370350711,1751976510213,584.28,0.00030136,120]
[370350712,1751976552002,584.28,0.00030136,120]
[370350713,1751976631881,-150.0,0.00022,2]
[370350714,1751976631890,-502.0,0.00022261,2]
[370350715,1751976631899,-182.52006389,0.00022263,2]
[370350716,1751976631909,-496.0,0.00022363,2]
[370350717,1751976631918,-150.0,0.00022364,2]
[370350718,1751976631927,-150.0,0.00022364,2]
[370350719,1751976631937,-150.0,0.00022364,2]
[370350720,1751976631947,-150.0,0.00022364,2]
[370350721,1751976631956,-150.86844955,0.00022364,2]
[370350722,1751976631965,-150.0,0.00022364,2]
[370350723,1751976631974,-150.58604695,0.00022364,2]
[370350724,1751976631983,-150.0,0.00022364,2]
[370350725,1751976631992,-150.35429664,0.00022364,2]
[370350726,1751976632001,-150.71576459,0.00022364,2]